[Event "*** Titled Tuesday Blitz"]
[Site "Chess.com"]
[Date "2018.05.01"]
[Round "5"]
[White "cukus"]
[Black "TheCount"]
[Result "0-1"]
[WhiteElo "2410"]
[BlackElo "2549"]
[TimeControl "180+2"]
[EndTime "14:07:08 PDT"]
[Termination "TheCount won by resignation"]

1. e4 {[%clk 0:03:01.9]} 1... c5 {[%clk 0:02:41.8]} 2. Nf3 {[%clk 0:03:02.2]}
2... Nc6 {[%clk 0:02:27.1]} 3. d4 {[%clk 0:02:58.2]} 3... cxd4 {[%clk
0:02:28.8]} 4. Nxd4 {[%clk 0:03:00.1]} 4... Qb6 {[%clk 0:02:28.8]} 5. Nb3 {[%clk
0:02:59.1]} 5... Nf6 {[%clk 0:02:29.9]} 6. Nc3 {[%clk 0:03:00.2]} 6... e6 {[%clk
0:02:30.9]} 7. a3 {[%clk 0:03:01.6]} 7... a6 {[%clk 0:02:31.3]} 8. Bf4 {[%clk
0:02:58.3]} 8... e5 {[%clk 0:01:57.5]} 9. Be3 {[%clk 0:02:57.9]} 9... Qc7 {[%clk
0:01:59]} 10. Be2 {[%clk 0:02:50]} 10... d6 {[%clk 0:01:59.8]} 11. Bg5 {[%clk
0:02:39.5]} 11... Be6 {[%clk 0:01:59.1]} 12. O-O {[%clk 0:02:34.9]} 12... Be7
{[%clk 0:01:44.5]} 13. Bxf6 {[%clk 0:02:32.6]} 13... Bxf6 {[%clk 0:01:45.3]} 14.
Nd5 {[%clk 0:02:33.9]} 14... Qd8 {[%clk 0:01:39.1]} 15. Nxf6+ {[%clk 0:02:14.2]}
15... Qxf6 {[%clk 0:01:30.8]} 16. c3 {[%clk 0:01:31.4]} 16... O-O {[%clk
0:01:27.2]} 17. Bf3 {[%clk 0:01:20]} 17... Rfd8 {[%clk 0:01:26.1]} 18. Qc2
{[%clk 0:00:56.9]} 18... Rac8 {[%clk 0:01:04.8]} 19. Rfd1 {[%clk 0:00:48.1]}
19... g6 {[%clk 0:01:05.4]} 20. Rd2 {[%clk 0:00:36.4]} 20... Nd4 {[%clk
0:01:00.1]} 21. Nxd4 {[%clk 0:00:36.2]} 21... exd4 {[%clk 0:01:01.5]} 22. Rd3
{[%clk 0:00:08.6]} 22... dxc3 {[%clk 0:00:51.2]} 23. bxc3 {[%clk 0:00:08.1]}
23... d5 {[%clk 0:00:48.5]} 24. Qd2 {[%clk 0:00:05.4]} 24... dxe4 {[%clk
0:00:46.4]} 25. Bxe4 {[%clk 0:00:06.5]} 25... Bc4 {[%clk 0:00:41.2]} 26. Rd4
{[%clk 0:00:06.1]} 26... b5 {[%clk 0:00:40.4]} 27. h3 {[%clk 0:00:05.1]} 27...
Rxd4 {[%clk 0:00:37]} 28. cxd4 {[%clk 0:00:04.5]} 28... Rd8 {[%clk 0:00:37.8]}
29. d5 {[%clk 0:00:04.8]} 29... Qxa1+ {[%clk 0:00:38.2]} 0-1

[Event "*** Titled Tuesday Blitz"]
[Site "Chess.com"]
[Date "2018.05.01"]
[Round "5"]
[White "Andnar"]
[Black "VeraNebolsina"]
[Result "0-1"]
[WhiteElo "2372"]
[BlackElo "2384"]
[TimeControl "180+2"]
[EndTime "14:07:11 PDT"]
[Termination "VeraNebolsina won by resignation"]

1. e4 {[%clk 0:03:01.9]} 1... c5 {[%clk 0:03:00.4]} 2. a3 {[%clk 0:03:01.9]}
2... g6 {[%clk 0:02:54.2]} 3. b4 {[%clk 0:03:01.5]} 3... Bg7 {[%clk 0:02:54.7]}
4. Nc3 {[%clk 0:03:03]} 4... cxb4 {[%clk 0:02:31.7]} 5. axb4 {[%clk 0:03:04.9]}
5... Nc6 {[%clk 0:02:32.7]} 6. b5 {[%clk 0:03:04.4]} 6... Nd4 {[%clk 0:02:33.5]}
7. Nf3 {[%clk 0:03:05.1]} 7... d5 {[%clk 0:01:38.9]} 8. Nxd4 {[%clk 0:02:54.4]}
8... Bxd4 {[%clk 0:01:37.6]} 9. exd5 {[%clk 0:02:55.8]} 9... Nf6 {[%clk
0:01:34.8]} 10. Bc4 {[%clk 0:02:56.3]} 10... Ng4 {[%clk 0:01:24.8]} 11. O-O
{[%clk 0:02:51.3]} 11... Qc7 {[%clk 0:01:25]} 12. d6 {[%clk 0:02:44.1]} 12...
Qxc4 {[%clk 0:01:16.7]} 13. Ra4 {[%clk 0:02:44.8]} 13... Qc5 {[%clk 0:00:41.5]}
14. Ne4 {[%clk 0:02:44.9]} 14... Qb6 {[%clk 0:00:40.7]} 15. dxe7 {[%clk
0:02:32.1]} 15... Bf5 {[%clk 0:00:34.9]} 16. c3 {[%clk 0:02:27.2]} 16... Bg7
{[%clk 0:00:20.1]} 17. Ba3 {[%clk 0:02:25.1]} 17... Bxe4 {[%clk 0:00:17.3]} 18.
Rxe4 {[%clk 0:02:18.5]} 18... f5 {[%clk 0:00:18.2]} 19. Re2 {[%clk 0:01:45.2]}
19... Qc7 {[%clk 0:00:18.7]} 20. g3 {[%clk 0:01:42.5]} 20... Ne5 {[%clk
0:00:18.6]} 21. d4 {[%clk 0:01:29.1]} 21... Nf3+ {[%clk 0:00:18.9]} 22. Kg2
{[%clk 0:01:30.5]} 22... Ng5 {[%clk 0:00:18.3]} 23. d5 {[%clk 0:01:13.7]} 23...
Qxc3 {[%clk 0:00:18.1]} 24. Re3 {[%clk 0:01:09.7]} 24... Qc7 {[%clk 0:00:18]}
25. d6 {[%clk 0:01:09.7]} 25... Qd7 {[%clk 0:00:19.2]} 26. Qd5 {[%clk
0:01:02.8]} 26... Ne4 {[%clk 0:00:18.7]} 27. Rd3 {[%clk 0:00:35.4]} 27... Rc8
{[%clk 0:00:19.5]} 28. f3 {[%clk 0:00:33.5]} 28... Rc2+ {[%clk 0:00:20.1]} 29.
Kg1 {[%clk 0:00:28.6]} 29... Nc3 {[%clk 0:00:20.2]} 30. Re3 {[%clk 0:00:18.6]}
30... Nxd5 {[%clk 0:00:20.2]} 0-1

[Event "*** Titled Tuesday Blitz"]
[Site "Chess.com"]
[Date "2018.05.01"]
[Round "5"]
[White "OparinGrigoriy"]
[Black "Gogolev_Artemy"]
[Result "1-0"]
[WhiteElo "2872"]
[BlackElo "2448"]
[TimeControl "180+2"]
[EndTime "14:07:13 PDT"]
[Termination "OparinGrigoriy won by resignation"]

1. e4 {[%clk 0:02:58.2]} 1... e5 {[%clk 0:02:50.9]} 2. Nf3 {[%clk 0:02:58.7]}
2... Nc6 {[%clk 0:02:51.4]} 3. Bc4 {[%clk 0:02:59.6]} 3... Bc5 {[%clk
0:02:51.6]} 4. c3 {[%clk 0:03:00.3]} 4... Nf6 {[%clk 0:02:51.6]} 5. d3 {[%clk
0:03:01.2]} 5... O-O {[%clk 0:02:51.3]} 6. Nbd2 {[%clk 0:03:00.5]} 6... a5
{[%clk 0:02:38.7]} 7. O-O {[%clk 0:02:59.2]} 7... h6 {[%clk 0:02:38.2]} 8. h3
{[%clk 0:02:55]} 8... Re8 {[%clk 0:02:36.1]} 9. Re1 {[%clk 0:02:54.2]} 9... d5
{[%clk 0:02:35.2]} 10. exd5 {[%clk 0:02:53.5]} 10... Nxd5 {[%clk 0:02:35.6]} 11.
Ne4 {[%clk 0:02:51.8]} 11... Bf8 {[%clk 0:02:36]} 12. Ng3 {[%clk 0:02:44]} 12...
a4 {[%clk 0:02:23.9]} 13. a3 {[%clk 0:02:06.9]} 13... Ra5 {[%clk 0:01:55.4]} 14.
d4 {[%clk 0:01:36.2]} 14... Nb6 {[%clk 0:01:44.4]} 15. Ba2 {[%clk 0:01:34.4]}
15... exd4 {[%clk 0:01:43.1]} 16. Rxe8 {[%clk 0:01:36.3]} 16... Qxe8 {[%clk
0:01:43.5]} 17. cxd4 {[%clk 0:01:37.2]} 17... Be6 {[%clk 0:01:27.2]} 18. Bb1
{[%clk 0:01:31.7]} 18... Rd5 {[%clk 0:01:20.2]} 19. Qd3 {[%clk 0:01:28.8]} 19...
g6 {[%clk 0:01:20.6]} 20. Be3 {[%clk 0:01:14.8]} 20... Bg7 {[%clk 0:01:15.1]}
21. Bc2 {[%clk 0:01:10.7]} 21... Qd7 {[%clk 0:00:59.8]} 22. Rd1 {[%clk
0:01:11.3]} 22... Ne7 {[%clk 0:00:58.4]} 23. Ne4 {[%clk 0:01:01.4]} 23... Bf5
{[%clk 0:00:51]} 24. Qe2 {[%clk 0:01:02.7]} 24... Qb5 {[%clk 0:00:47.3]} 25. Bd3
{[%clk 0:01:01.4]} 25... Qa5 {[%clk 0:00:36.7]} 26. Ne5 {[%clk 0:00:50.2]} 26...
Bxe5 {[%clk 0:00:29.2]} 27. dxe5 {[%clk 0:00:52.1]} 27... Bxe4 {[%clk 0:00:26]}
28. Bxe4 {[%clk 0:00:52.8]} 28... Rxd1+ {[%clk 0:00:19.1]} 29. Qxd1 {[%clk
0:00:54.7]} 29... Nc6 {[%clk 0:00:13.5]} 30. Bxc6 {[%clk 0:00:53.7]} 30... bxc6
{[%clk 0:00:14.2]} 31. Qd8+ {[%clk 0:00:54.6]} 31... Kg7 {[%clk 0:00:14.6]} 32.
Qf6+ {[%clk 0:00:55.1]} 32... Kg8 {[%clk 0:00:15.2]} 33. Bxh6 {[%clk 0:00:55.8]}
33... Qe1+ {[%clk 0:00:13.9]} 34. Kh2 {[%clk 0:00:57]} 1-0

[Event "*** Titled Tuesday Blitz"]
[Site "Chess.com"]
[Date "2018.05.01"]
[Round "5"]
[White "tomozupan"]
[Black "JozefKneht"]
[Result "0-1"]
[WhiteElo "2148"]
[BlackElo "2400"]
[TimeControl "180+2"]
[EndTime "14:07:26 PDT"]
[Termination "JozefKneht won by resignation"]

1. d4 {[%clk 0:02:58.9]} 1... d5 {[%clk 0:02:59.7]} 2. c4 {[%clk 0:02:59.2]}
2... c6 {[%clk 0:03:00.4]} 3. cxd5 {[%clk 0:02:59.5]} 3... cxd5 {[%clk 0:03:01]}
4. Nc3 {[%clk 0:03:00.3]} 4... Nf6 {[%clk 0:03:01.1]} 5. Nf3 {[%clk 0:03:01.4]}
5... Nc6 {[%clk 0:03:01.4]} 6. Bf4 {[%clk 0:03:02.1]} 6... Bf5 {[%clk
0:03:02.1]} 7. e3 {[%clk 0:03:01.3]} 7... e6 {[%clk 0:03:02.5]} 8. Bb5 {[%clk
0:03:01.4]} 8... Nd7 {[%clk 0:03:03.1]} 9. Qa4 {[%clk 0:02:57.7]} 9... Rc8
{[%clk 0:03:02.8]} 10. Bxc6 {[%clk 0:02:36.3]} 10... Rxc6 {[%clk 0:03:01.4]} 11.
Qxa7 {[%clk 0:02:29.5]} 11... Qc8 {[%clk 0:02:53.1]} 12. Qa4 {[%clk 0:01:35.7]}
12... Rxc3 {[%clk 0:02:41.9]} 13. bxc3 {[%clk 0:00:45.2]} 13... Qxc3+ {[%clk
0:02:39.7]} 14. Nd2 {[%clk 0:00:46.2]} 14... Qxa1+ {[%clk 0:02:32.5]} 15. Ke2
{[%clk 0:00:47.1]} 15... Qxh1 {[%clk 0:02:24.1]} 16. Qa8+ {[%clk 0:00:45.1]}
16... Ke7 {[%clk 0:02:23.3]} 17. Bc7 {[%clk 0:00:20.4]} 17... Kf6 {[%clk
0:01:57.3]} 18. Qd8+ {[%clk 0:00:19.8]} 18... Kg6 {[%clk 0:01:43.6]} 19. Nf3
{[%clk 0:00:10.6]} 19... f6 {[%clk 0:00:55.6]} 20. Qxd7 {[%clk 0:00:10.2]} 20...
Bg4 {[%clk 0:00:47.9]} 21. Qe8+ {[%clk 0:00:08.7]} 21... Kh6 {[%clk 0:00:45.6]}
22. Bf4+ {[%clk 0:00:08.3]} 22... g5 {[%clk 0:00:40.3]} 23. Qf7 {[%clk 0:00:09]}
23... Bg7 {[%clk 0:00:19.7]} 24. Bxg5+ {[%clk 0:00:03.4]} 24... fxg5 {[%clk
0:00:19.9]} 25. h3 {[%clk 0:00:03.5]} 25... Bxf3+ {[%clk 0:00:18.7]} 26. gxf3
{[%clk 0:00:04.8]} 26... Rf8 {[%clk 0:00:18.6]} 27. Qxe6+ {[%clk 0:00:05.8]}
27... Rf6 {[%clk 0:00:19.4]} 28. Qg4 {[%clk 0:00:06.8]} 28... Kg6 {[%clk
0:00:17.5]} 29. f4 {[%clk 0:00:07.5]} 29... h6 {[%clk 0:00:17.9]} 30. fxg5
{[%clk 0:00:08.4]} 30... hxg5 {[%clk 0:00:18.2]} 0-1

[Event "*** Titled Tuesday Blitz"]
[Site "Chess.com"]
[Date "2018.05.01"]
[Round "5"]
[White "Manukyan_Artak"]
[Black "Storne89"]
[Result "0-1"]
[WhiteElo "2367"]
[BlackElo "2528"]
[TimeControl "180+2"]
[EndTime "14:07:38 PDT"]
[Termination "Storne89 won by resignation"]

1. e4 {[%clk 0:03:01.6]} 1... e5 {[%clk 0:02:59.8]} 2. Nf3 {[%clk 0:03:01.9]}
2... Nc6 {[%clk 0:03:01]} 3. d4 {[%clk 0:03:02.3]} 3... exd4 {[%clk 0:03:01.9]}
4. Nxd4 {[%clk 0:03:03.3]} 4... Nf6 {[%clk 0:03:01.6]} 5. Nxc6 {[%clk
0:03:04.1]} 5... bxc6 {[%clk 0:03:02.4]} 6. e5 {[%clk 0:03:05]} 6... Nd5 {[%clk
0:03:03.7]} 7. c4 {[%clk 0:03:05.1]} 7... Ne7 {[%clk 0:03:03.4]} 8. g3 {[%clk
0:02:56.2]} 8... Ng6 {[%clk 0:03:03]} 9. f4 {[%clk 0:02:50.6]} 9... d6 {[%clk
0:03:04.2]} 10. exd6 {[%clk 0:02:38.6]} 10... Bxd6 {[%clk 0:03:05]} 11. Bg2
{[%clk 0:02:28.5]} 11... O-O {[%clk 0:03:05.6]} 12. O-O {[%clk 0:02:28.7]} 12...
Bc5+ {[%clk 0:02:56.1]} 13. Kh1 {[%clk 0:02:29.7]} 13... Qf6 {[%clk 0:02:57.5]}
14. Nc3 {[%clk 0:02:26.3]} 14... Bf5 {[%clk 0:02:57.9]} 15. Ne4 {[%clk
0:02:23.1]} 15... Bxe4 {[%clk 0:02:58.9]} 16. Bxe4 {[%clk 0:02:23.8]} 16... Rad8
{[%clk 0:03:00.5]} 17. Qh5 {[%clk 0:02:20.3]} 17... Bd4 {[%clk 0:02:59.8]} 18.
Qf5 {[%clk 0:02:11.4]} 18... Bxb2 {[%clk 0:02:41.4]} 19. Qxf6 {[%clk 0:02:03.3]}
19... Bxf6 {[%clk 0:02:42.4]} 20. Rb1 {[%clk 0:02:04.1]} 20... Rd4 {[%clk
0:02:43.9]} 21. Bxc6 {[%clk 0:01:59.5]} 21... Rxc4 {[%clk 0:02:45.2]} 22. Bg2
{[%clk 0:01:56.1]} 22... Bd4 {[%clk 0:02:43.1]} 23. Ba3 {[%clk 0:01:49.3]} 23...
c5 {[%clk 0:02:42.5]} 24. Rfc1 {[%clk 0:01:35.4]} 24... Rxc1+ {[%clk 0:02:37]}
25. Rxc1 {[%clk 0:01:36.6]} 25... Rc8 {[%clk 0:02:38]} 26. Rc4 {[%clk
0:01:18.6]} 26... Ne7 {[%clk 0:02:34.6]} 27. Bf1 {[%clk 0:01:12.7]} 27... Nd5
{[%clk 0:02:29.9]} 28. Bc1 {[%clk 0:01:08.4]} 28... Re8 {[%clk 0:02:25.7]} 29.
Bd2 {[%clk 0:01:04.1]} 29... g6 {[%clk 0:02:16.5]} 30. Rc1 {[%clk 0:00:59.8]}
30... Rb8 {[%clk 0:02:16.3]} 31. Bc4 {[%clk 0:00:58.9]} 31... Nf6 {[%clk
0:02:13.3]} 32. Rc2 {[%clk 0:00:49.8]} 32... Rb1+ {[%clk 0:02:07]} 33. Kg2
{[%clk 0:00:49.7]} 33... Ne4 {[%clk 0:02:08.1]} 34. Kf3 {[%clk 0:00:45.1]} 34...
Nd6 {[%clk 0:02:05.8]} 35. Bd5 {[%clk 0:00:37.6]} 35... Rf1+ {[%clk 0:01:38.6]}
36. Kg4 {[%clk 0:00:22.9]} 36... h5+ {[%clk 0:01:35.5]} 37. Kh3 {[%clk
0:00:22.9]} 37... Rf2 {[%clk 0:01:36.3]} 38. Bb3 {[%clk 0:00:21.3]} 38... c4
{[%clk 0:01:28.2]} 39. Ba4 {[%clk 0:00:21.9]} 39... c3 {[%clk 0:01:25.1]} 40.
Bc1 {[%clk 0:00:22.9]} 40... Rf1 {[%clk 0:01:14.2]} 41. g4 {[%clk 0:00:16.2]}
41... Rf3+ {[%clk 0:01:08.2]} 42. Kg2 {[%clk 0:00:17]} 42... hxg4 {[%clk
0:01:09]} 43. Bc6 {[%clk 0:00:14.2]} 43... Rd3 {[%clk 0:01:08.2]} 44. Ba3 {[%clk
0:00:13.9]} 44... Nf5 {[%clk 0:01:07.4]} 45. Be4 {[%clk 0:00:14.4]} 45... Ne3+
{[%clk 0:01:05.7]} 46. Kf2 {[%clk 0:00:15.8]} 46... Nxc2+ {[%clk 0:01:06.9]} 0-1

[Event "*** Titled Tuesday Blitz"]
[Site "Chess.com"]
[Date "2018.05.01"]
[Round "5"]
[White "KRASAVCHIK2002"]
[Black "Too_Stupid_To_Play"]
[Result "1-0"]
[WhiteElo "2041"]
[BlackElo "2183"]
[TimeControl "180+2"]
[EndTime "14:07:54 PDT"]
[Termination "KRASAVCHIK2002 won by resignation"]

1. d4 {[%clk 0:03:01.4]} 1... Nf6 {[%clk 0:03:00.8]} 2. Nf3 {[%clk 0:03:01]}
2... b5 {[%clk 0:03:01.3]} 3. Bg5 {[%clk 0:03:00.2]} 3... Ne4 {[%clk 0:03:01]}
4. Bf4 {[%clk 0:03:00.2]} 4... Bb7 {[%clk 0:03:02.4]} 5. e3 {[%clk 0:03:01.3]}
5... a6 {[%clk 0:03:03]} 6. Bd3 {[%clk 0:03:02.2]} 6... e6 {[%clk 0:03:04]} 7.
O-O {[%clk 0:03:03.1]} 7... d6 {[%clk 0:03:04.1]} 8. c3 {[%clk 0:03:03.9]} 8...
Nd7 {[%clk 0:03:04.5]} 9. Nbd2 {[%clk 0:03:04.9]} 9... f5 {[%clk 0:03:05.4]} 10.
Qc2 {[%clk 0:03:04.9]} 10... Ndf6 {[%clk 0:03:06.2]} 11. Bg5 {[%clk 0:03:06.1]}
11... Nxd2 {[%clk 0:02:59.7]} 12. Qxd2 {[%clk 0:03:01.5]} 12... Be7 {[%clk
0:02:59]} 13. Rfe1 {[%clk 0:02:59.6]} 13... O-O {[%clk 0:02:59.1]} 14. Bxf6
{[%clk 0:02:59.4]} 14... Bxf6 {[%clk 0:03:00]} 15. e4 {[%clk 0:03:00.1]} 15...
e5 {[%clk 0:02:45.4]} 16. Rad1 {[%clk 0:02:28.8]} 16... fxe4 {[%clk 0:02:29.4]}
17. Bxe4 {[%clk 0:02:28.1]} 17... d5 {[%clk 0:02:27.3]} 18. Bc2 {[%clk
0:02:15.3]} 18... e4 {[%clk 0:02:25.6]} 19. Ne5 {[%clk 0:02:15.8]} 19... Bxe5
{[%clk 0:01:47]} 20. dxe5 {[%clk 0:02:15.2]} 20... Qe7 {[%clk 0:01:48.9]} 21.
Bb3 {[%clk 0:02:15.8]} 21... c6 {[%clk 0:01:49.3]} 22. Rxe4 {[%clk 0:02:14.4]}
22... Kh8 {[%clk 0:01:41.7]} 23. Ree1 {[%clk 0:02:12]} 23... Rae8 {[%clk
0:01:35.8]} 24. Bc2 {[%clk 0:01:59.2]} 24... Bc8 {[%clk 0:01:34]} 25. Qe3 {[%clk
0:01:25.1]} 25... Bf5 {[%clk 0:01:19.5]} 26. Bb3 {[%clk 0:01:18.9]} 26... a5
{[%clk 0:00:20.2]} 27. a4 {[%clk 0:01:14.4]} 27... b4 {[%clk 0:00:20.3]} 28. c4
{[%clk 0:01:11.6]} 28... dxc4 {[%clk 0:00:16.8]} 29. Bxc4 {[%clk 0:01:12.4]}
29... Be6 {[%clk 0:00:18.7]} 30. Bxe6 {[%clk 0:01:04.2]} 30... Qxe6 {[%clk
0:00:20.6]} 31. Qc5 {[%clk 0:01:04.4]} 31... Qb3 {[%clk 0:00:19.9]} 32. e6
{[%clk 0:00:55.8]} 32... Qxb2 {[%clk 0:00:14.2]} 33. e7 {[%clk 0:00:51.3]} 33...
Rg8 {[%clk 0:00:15.4]} 34. Qxc6 {[%clk 0:00:50.1]} 34... h6 {[%clk 0:00:10.6]}
35. Qxe8 {[%clk 0:00:36.9]} 35... Rxe8 {[%clk 0:00:08.7]} 36. Rd8 {[%clk
0:00:37.6]} 36... Qc3 {[%clk 0:00:03.6]} 37. Rxe8+ {[%clk 0:00:37.8]} 37... Kh7
{[%clk 0:00:05.1]} 38. Rh8+ {[%clk 0:00:38.6]} 38... Kxh8 {[%clk 0:00:06.6]} 39.
e8=Q+ {[%clk 0:00:39.7]} 1-0

[Event "*** Titled Tuesday Blitz"]
[Site "Chess.com"]
[Date "2018.05.01"]
[Round "5"]
[White "PchelkinVK"]
[Black "Angulo07"]
[Result "0-1"]
[WhiteElo "2414"]
[BlackElo "2283"]
[TimeControl "180+2"]
[EndTime "14:07:56 PDT"]
[Termination "Angulo07 won by resignation"]

1. d3 {[%clk 0:03:01.9]} 1... d5 {[%clk 0:03:00.6]} 2. Nf3 {[%clk 0:02:58.2]}
2... c5 {[%clk 0:03:00.5]} 3. g3 {[%clk 0:02:58.5]} 3... Nc6 {[%clk 0:03:00.8]}
4. Bg2 {[%clk 0:02:59.8]} 4... Nf6 {[%clk 0:02:55]} 5. O-O {[%clk 0:03:00.2]}
5... e5 {[%clk 0:02:54]} 6. Nbd2 {[%clk 0:03:00.9]} 6... h6 {[%clk 0:02:52.4]}
7. c4 {[%clk 0:03:00.5]} 7... e4 {[%clk 0:02:49.9]} 8. Ne1 {[%clk 0:02:56.6]}
8... Be6 {[%clk 0:02:48]} 9. cxd5 {[%clk 0:02:56.9]} 9... Bxd5 {[%clk
0:02:46.9]} 10. dxe4 {[%clk 0:02:23.9]} 10... Bxe4 {[%clk 0:02:47.3]} 11. Nd3
{[%clk 0:02:15.1]} 11... Bxg2 {[%clk 0:02:41.8]} 12. Kxg2 {[%clk 0:02:17]} 12...
c4 {[%clk 0:02:39.4]} 13. Nf4 {[%clk 0:01:43.6]} 13... g5 {[%clk 0:02:35.2]} 14.
Nh3 {[%clk 0:01:44.2]} 14... b5 {[%clk 0:02:28.8]} 15. a4 {[%clk 0:01:44.3]}
15... a6 {[%clk 0:02:24.7]} 16. f3 {[%clk 0:01:36.3]} 16... Bc5 {[%clk
0:02:20.5]} 17. Nf2 {[%clk 0:01:31.1]} 17... O-O {[%clk 0:01:46.5]} 18. Nfe4
{[%clk 0:01:17.9]} 18... Qe7 {[%clk 0:01:41.1]} 19. Nxf6+ {[%clk 0:01:15.8]}
19... Qxf6 {[%clk 0:01:41.6]} 20. Ne4 {[%clk 0:01:17.7]} 20... Qf5 {[%clk
0:01:37.1]} 21. axb5 {[%clk 0:01:14.2]} 21... axb5 {[%clk 0:01:36.2]} 22. Rxa8
{[%clk 0:01:16.1]} 22... Rxa8 {[%clk 0:01:34.8]} 23. h4 {[%clk 0:00:52.1]} 23...
Rd8 {[%clk 0:01:27.8]} 24. Qe1 {[%clk 0:00:40.8]} 24... gxh4 {[%clk 0:01:25.8]}
25. Bxh6 {[%clk 0:00:34.4]} 25... h3+ {[%clk 0:01:18.3]} 26. Kh1 {[%clk
0:00:26.1]} 26... Be7 {[%clk 0:01:10.5]} 27. g4 {[%clk 0:00:23.8]} 27... Qe5
{[%clk 0:01:04.4]} 28. g5 {[%clk 0:00:21.2]} 28... Qxb2 {[%clk 0:01:02.5]} 29.
Qg3 {[%clk 0:00:13.8]} 29... Ne5 {[%clk 0:00:52.3]} 30. Qxh3 {[%clk 0:00:07.3]}
30... Qxe2 {[%clk 0:00:50.5]} 31. Nf6+ {[%clk 0:00:03.4]} 31... Bxf6 {[%clk
0:00:46.3]} 32. gxf6 {[%clk 0:00:05.3]} 32... Rd1 {[%clk 0:00:43.6]} 33. Rg1+
{[%clk 0:00:04.6]} 33... Rxg1+ {[%clk 0:00:39.2]} 34. Kxg1 {[%clk 0:00:06.5]}
34... Qxf3 {[%clk 0:00:39.9]} 35. Qc8+ {[%clk 0:00:05.5]} 35... Kh7 {[%clk
0:00:30.8]} 36. Bg7 {[%clk 0:00:06.6]} 36... Qg4+ {[%clk 0:00:19.7]} 37. Kf1
{[%clk 0:00:07]} 37... Qxc8 {[%clk 0:00:20.5]} 0-1

[Event "*** Titled Tuesday Blitz"]
[Site "Chess.com"]
[Date "2018.05.01"]
[Round "5"]
[White "Grootneus"]
[Black "Caterpiller35"]
[Result "0-1"]
[WhiteElo "2135"]
[BlackElo "2233"]
[TimeControl "180+2"]
[EndTime "14:07:58 PDT"]
[Termination "Caterpiller35 won by checkmate"]

1. e4 {[%clk 0:03:01.1]} 1... c5 {[%clk 0:03:00.1]} 2. c3 {[%clk 0:03:01.8]}
2... Nf6 {[%clk 0:02:59.9]} 3. e5 {[%clk 0:03:02.2]} 3... Nd5 {[%clk 0:03:00.1]}
4. Nf3 {[%clk 0:03:04.1]} 4... Nc6 {[%clk 0:02:51.5]} 5. Bc4 {[%clk 0:03:02.4]}
5... Nb6 {[%clk 0:02:48.4]} 6. Bb3 {[%clk 0:03:02]} 6... c4 {[%clk 0:02:49.1]}
7. Bc2 {[%clk 0:03:03.6]} 7... d6 {[%clk 0:02:47.5]} 8. exd6 {[%clk 0:03:05.5]}
8... Qxd6 {[%clk 0:02:48.4]} 9. O-O {[%clk 0:03:06.1]} 9... Bg4 {[%clk
0:02:48.9]} 10. Qe2 {[%clk 0:03:04.7]} 10... O-O-O {[%clk 0:02:47.2]} 11. Na3
{[%clk 0:02:42.7]} 11... e5 {[%clk 0:02:47.1]} 12. Be4 {[%clk 0:02:00.6]} 12...
f5 {[%clk 0:02:40.9]} 13. Nb5 {[%clk 0:01:43.6]} 13... Qb8 {[%clk 0:02:27]} 14.
Bxc6 {[%clk 0:01:37.5]} 14... bxc6 {[%clk 0:02:17]} 15. Qxe5 {[%clk 0:01:31.4]}
15... cxb5 {[%clk 0:02:09.1]} 16. Qxb5 {[%clk 0:01:22.8]} 16... Bxf3 {[%clk
0:02:08.3]} 17. gxf3 {[%clk 0:01:24.7]} 17... Rd5 {[%clk 0:01:56.5]} 18. Qe8+
{[%clk 0:01:22.3]} 18... Kb7 {[%clk 0:01:54.4]} 19. Qh5 {[%clk 0:00:56.7]} 19...
g6 {[%clk 0:01:40.9]} 20. Qg5 {[%clk 0:00:54.5]} 20... Qd8 {[%clk 0:01:39.3]}
21. Qe3 {[%clk 0:00:46.4]} 21... Bc5 {[%clk 0:01:39.7]} 22. Qh6 {[%clk
0:00:46.9]} 22... Rd3 {[%clk 0:01:33.4]} 23. b4 {[%clk 0:00:47.5]} 23... Bd6
{[%clk 0:01:28.3]} 24. a4 {[%clk 0:00:37.7]} 24... Qf6 {[%clk 0:01:27.6]} 25. a5
{[%clk 0:00:32.3]} 25... Nd5 {[%clk 0:01:28.3]} 26. a6+ {[%clk 0:00:32.6]} 26...
Kb8 {[%clk 0:01:28.6]} 27. Ra5 {[%clk 0:00:34.2]} 27... Nf4 {[%clk 0:01:22.2]}
28. Rb5+ {[%clk 0:00:19.9]} 28... Ka8 {[%clk 0:01:14.9]} 29. Re1 {[%clk
0:00:21.2]} 29... Rxf3 {[%clk 0:01:11.1]} 30. Re3 {[%clk 0:00:09.6]} 30... Rxe3
{[%clk 0:01:04.5]} 31. dxe3 {[%clk 0:00:09.5]} 31... Ne2+ {[%clk 0:01:03.7]} 32.
Kf1 {[%clk 0:00:10.4]} 32... Nxc1 {[%clk 0:01:04.7]} 33. e4 {[%clk 0:00:12.3]}
33... Nd3 {[%clk 0:01:00.7]} 34. Qe3 {[%clk 0:00:11.6]} 34... Re8 {[%clk
0:00:57.3]} 35. Rb7 {[%clk 0:00:12.1]} 35... Bb8 {[%clk 0:00:40.1]} 36. f3
{[%clk 0:00:04.5]} 36... Qxa6 {[%clk 0:00:40.2]} 37. Rxh7 {[%clk 0:00:02.4]}
37... Qa1+ {[%clk 0:00:40.3]} 38. Kg2 {[%clk 0:00:03.3]} 38... Qb2+ {[%clk
0:00:38]} 39. Kh3 {[%clk 0:00:03.7]} 39... Qxh2# {[%clk 0:00:38.5]} 0-1